[Event "DMP Ekstraliga 2020"]
[Site "Krakow"]
[Date "2020.08.28"]
[Round "3.9"]
[White "Nguyen, Piotr"]
[Black "Gumularz, Szymon"]
[Result "1/2-1/2"]
[ECO "E19"]
[WhiteElo "2422"]
[BlackElo "2506"]
[Annotator "ChessBase"]
[PlyCount "69"]
[EventDate "2020.08.26"]
[EventType "team-tourn"]
[EventCountry "POL"]
[SourceTitle "playchess.com"]
[Source "ChessBase"]
[SourceQuality "1"]
[TimeControl "30/5400+30:1800+30"]

1. Nf3 {[%emt 0:00:00]} Nf6 {[%emt 0:00:00]} 2. c4 {[%emt 0:00:00]} e6 {[%emt 0:00:06]} 3. g3 {[%emt 0:00:09]} a6 {[%emt 0:02:25]} 4. Bg2 {[%emt 0:02:22]} b5 {[%emt 0:00:09]} 5. b3 {[%emt 0:07:43]} Bb7 {[%emt 0:00:08]} 6. O-O {[%emt 0:00:05]} Be7 {[%emt 0:07:20]} 7. Nc3 {[%emt 0:02:25]} b4 {[%emt 0:01:19]} 8. Na4 {[%emt 0:01:58]} O-O {[%emt 0:00:15]} 9. d4 {[%emt 0:01:19]} a5 {[%emt 0:07:25]} 10. Bb2 {[%emt 0:11:37]} d6 {[%emt 0:07:08]} 11. Rc1 {[%emt 0:06:51]} Nbd7 {[%emt 0:13:38]} 12. c5 {[%emt 0:06:23]} Be4 {[%emt 0:04:34]} 13. Bh3 {[%emt 0:13:45]} Ra6 {[%emt 0:06:08]} 14. Nd2 {[%emt 0:03:22]} Bc6 {[%emt 0:01:35]} 15. cxd6 {[%emt 0:01:43]} cxd6 {[%emt 0:00:20]} 16. e4 {[%emt 0:03:17]} Bb5 {[%emt 0:19:32]} 17. Re1 {[%emt 0:00:16]} Rc6 {[%emt 0:06:05]} 18. Rxc6 {[%emt 0:03:22]} Bxc6 {[%emt 0:00:05]} 19. Qe2 {[%emt 0:00:07]} Qb8 {[%emt 0:05:07]} 20. Bf1 {[%emt 0:07:21]} Rc8 {[%emt 0:04:47]} 21. Rc1 {[%emt 0:01:17]} Bd8 {[%emt 0:03:06]} 22. f3 {[%emt 0:01:20]} Bxa4 {[%emt 0:01:52]} 23. bxa4 {[%emt 0:01:55]} Rxc1 {[%emt 0:00:17]} 24. Bxc1 {[%emt 0:00:04]} Bb6 {[%emt 0:00:12]} 25. Nb3 {[%emt 0:00:41]} d5 {[%emt 0:00:28]} 26. Qb5 {[%emt 0:05:39]} Qa7 {[%emt 0:00:58]} 27. exd5 {[%emt 0:06:15]} Nxd5 {[%emt 0:00:32]} 28. Kg2 {[%emt 0:00:06]} h6 {[%emt 0:02:00]} 29. Qc6 {[%emt 0:01:19]} Ne7 {[%emt 0:02:08]} 30. Qb5 {[%emt 0:03:03]} Nf6 {[%emt 0:00:18]} 31. a3 {[%emt 0:30:35]} bxa3 {[%emt 0:32:04]} 32. Bxa3 {[%emt 0:00:45]} Ned5 {[%emt 0:01:48]} 33. Bc5 {[%emt 0:00:47]} Qc7 {[%emt 0:00:17]} 34. Bd3 {[%emt 0:02:38]} g6 {[%emt 0:00:28]} 35. Be4 {[%emt 0:02:48]} 1/2-1/2

[Event "DMP Ekstraliga 2020"]
[Site "Krakow"]
[Date "2020.08.28"]
[Round "3.10"]
[White "Tazbir, Marcin"]
[Black "Zwardon, Vojtech"]
[Result "1/2-1/2"]
[ECO "B31"]
[WhiteElo "2510"]
[BlackElo "2481"]
[Annotator "ChessBase"]
[PlyCount "75"]
[EventDate "2020.08.26"]
[EventType "team-tourn"]
[EventCountry "POL"]
[SourceTitle "playchess.com"]
[Source "ChessBase"]
[SourceQuality "1"]
[TimeControl "30/5400+30:1800+30"]

1. e4 {[%emt 0:00:00]} c5 {[%emt 0:00:00]} 2. Nf3 {[%emt 0:00:00]} Nc6 {[%emt 0:00:00]} 3. Bb5 {[%emt 0:00:00]} g6 {[%emt 0:00:00]} 4. Bxc6 {[%emt 0:00:00]} dxc6 {[%emt 0:00:00]} 5. d3 {[%emt 0:00:11]} Bg7 {[%emt 0:00:00]} 6. h3 {[%emt 0:00:11]} Nf6 {[%emt 0:00:00]} 7. Nc3 {[%emt 0:02:10]} O-O {[%emt 0:04:51]} 8. Be3 {[%emt 0:00:23]} b6 {[%emt 0:00:06]} 9. Qd2 {[%emt 0:00:45]} e5 {[%emt 0:00:02]} 10. Bh6 {[%emt 0:00:58]} Qd6 {[%emt 0:00:01]} 11. O-O {[%emt 0:00:52]} Nh5 {[%emt 0:01:15]} 12. Ne2 {[%emt 0:02:39]} Nf4 {[%emt 0:09:37]} 13. Bxg7 {[%emt 0:09:49]} Nxe2+ {[%emt 0:00:51]} 14. Qxe2 {[%emt 0:00:04]} Kxg7 {[%emt 0:00:05]} 15. b3 {[%emt 0:01:43]} f6 {[%emt 0:00:30]} 16. a4 {[%emt 0:02:22]} Be6 {[%emt 0:00:39]} 17. Nd2 {[%emt 0:01:36]} g5 {[%emt 0:05:52]} 18. Nc4 {[%emt 0:02:57]} Qd7 {[%emt 0:01:05]} 19. Ne3 {[%emt 0:02:19]} Rh8 {[%emt 0:06:50]} 20. Qh5 {[%emt 0:03:26]} Qf7 {[%emt 0:00:16]} 21. Qxf7+ {[%emt 0:06:32]} Kxf7 {[%emt 0:00:06]} 22. Kh2 {[%emt 0:00:08]} h5 {[%emt 0:00:24]} 23. h4 {[%emt 0:03:34]} Ke7 {[%emt 0:05:14]} 24. g3 {[%emt 0:02:32]} g4 {[%emt 0:03:08]} 25. Kg2 {[%emt 0:06:41]} a5 {[%emt 0:02:11]} 26. Nc4 {[%emt 0:02:49]} Ra6 {[%emt 0:00:53]} 27. f4 {[%emt 0:02:32]} gxf3+ {[%emt 0:00:06]} 28. Kxf3 {[%emt 0:02:47]} Rg8 {[%emt 0:03:20]} 29. Rg1 {[%emt 0:02:00]} Rga8 {[%emt 0:00:27]} 30. Ne3 {[%emt 0:01:28]} Rh8 {[%emt 0:02:56]} 31. Nc4 {[%emt 0:33:08]} Rha8 {[%emt 0:30:10]} 32. Rh1 {[%emt 0:00:21]} Rg8 {[%emt 0:01:55]} 33. Rh2 {[%emt 0:04:19]} Bg4+ {[%emt 0:00:48]} 34. Kf2 {[%emt 0:02:12]} Be6 {[%emt 0:00:04]} 35. Rhh1 {[%emt 0:00:58]} Rb8 {[%emt 0:03:56]} 36. Ne3 {[%emt 0:00:33]} Rg8 {[%emt 0:02:25]} 37. Rag1 {[%emt 0:05:01]} Raa8 {[%emt 0:00:45]} 38. Kf3 {[%emt 0:03:14]} 1/2-1/2

[Event "DMP Ekstraliga 2020"]
[Site "Krakow"]
[Date "2020.08.28"]
[Round "3.11"]
[White "Szustakowski, Antoni"]
[Black "Wieczorek, Oskar"]
[Result "0-1"]
[ECO "E73"]
[WhiteElo "2295"]
[BlackElo "2493"]
[Annotator "ChessBase"]
[PlyCount "120"]
[EventDate "2020.08.26"]
[EventType "team-tourn"]
[EventCountry "POL"]
[SourceTitle "playchess.com"]
[Source "ChessBase"]
[SourceQuality "1"]
[TimeControl "30/5400+30:1800+30"]

1. d4 {[%emt 0:00:00]} Nf6 {[%emt 0:00:19]} 2. c4 {[%emt 0:00:00]} g6 {[%emt 0:00:17]} 3. Nc3 {[%emt 0:00:00]} Bg7 {[%emt 0:00:24]} 4. e4 {[%emt 0:00:00]} d6 {[%emt 0:00:05]} 5. Be2 {[%emt 0:00:00]} O-O {[%emt 0:00:10]} 6. Bg5 {[%emt 0:00:00]} Na6 {[%emt 0:01:01]} 7. Qd2 {[%emt 0:00:09]} e5 {[%emt 0:00:47]} 8. d5 {[%emt 0:00:06]} Qe8 {[%emt 0:00:09]} 9. f3 {[%emt 0:00:08]} Nh5 {[%emt 0:00:21]} 10. Bd1 {[%emt 0:00:12]} Bd7 {[%emt 0:01:14]} 11. Nge2 {[%emt 0:00:41]} f5 {[%emt 0:00:02]} 12. exf5 {[%emt 0:00:08]} gxf5 {[%emt 0:01:15]} 13. Bc2 {[%emt 0:00:05]} Nb4 {[%emt 0:03:22]} 14. Bb1 {[%emt 0:14:06]} a5 {[%emt 0:00:13]} 15. Be3 {[%emt 0:18:07]} Kh8 {[%emt 0:11:30]} 16. g3 {[%emt 0:20:47]} c6 {[%emt 0:21:06]} 17. O-O {[%emt 0:15:47]} cxd5 {[%emt 0:02:53]} 18. cxd5 {[%emt 0:00:13]} f4 {[%emt 0:19:26]} 19. gxf4 {[%emt 0:03:50]} exf4 {[%emt 0:04:27]} 20. Nxf4 {[%emt 0:00:07]} Nxf4 {[%emt 0:03:07]} 21. Bxf4 {[%emt 0:00:05]} Bh3 {[%emt 0:00:47]} 22. Be4 {[%emt 0:06:37]} Bxf1 {[%emt 0:07:57]} 23. Rxf1 {[%emt 0:00:04]} Be5 {[%emt 0:00:47]} 24. Bg3 {[%emt 0:00:05]} Qe7 {[%emt 0:04:21]} 25. f4 {[%emt 0:08:30]} Bg7 {[%emt 0:00:17]} 26. Bf3 {[%emt 0:01:08]} Qf6 {[%emt 0:02:37]} 27. a3 {[%emt 0:01:32]} Qd4+ {[%emt 0:00:56]} 28. Qxd4 {[%emt 0:00:06]} Bxd4+ {[%emt 0:00:04]} 29. Kh1 {[%emt 0:00:04]} Nd3 {[%emt 0:04:24]} 30. Nb5 {[%emt 0:00:48]} Bxb2 {[%emt 0:01:17]} 31. Be2 {[%emt 0:35:09]} Nc5 {[%emt 0:36:17]} 32. Rb1 {[%emt 0:00:04]} Bf6 {[%emt 0:02:14]} 33. Nxd6 {[%emt 0:00:05]} Be7 {[%emt 0:01:05]} 34. f5 {[%emt 0:00:10]} Rad8 {[%emt 0:00:40]} 35. Be5+ {[%emt 0:00:11]} Bf6 {[%emt 0:00:01]} 36. Bg3 {[%emt 0:00:06]} Be7 {[%emt 0:01:09]} 37. Be5+ {[%emt 0:00:05]} Bf6 {[%emt 0:00:05]} 38. Bg3 {[%emt 0:00:14]} Rd7 {[%emt 0:00:56]} 39. Rb5 {[%emt 0:04:46]} b6 {[%emt 0:00:42]} 40. Rxb6 {[%emt 0:00:00]} Na4 {[%emt 0:00:00]} 41. Rc6 {[%emt 0:00:00]} Nc3 {[%emt 0:00:00]} 42. Bf3 {[%emt 0:00:00]} h5 {[%emt 0:00:00]} 43. Bxh5 {[%emt 0:00:00]} Nxd5 {[%emt 0:00:00]} 44. Bf3 {[%emt 0:00:00]} Ne3 {[%emt 0:00:00]} 45. Bf4 {[%emt 0:00:00]} Bd4 {[%emt 0:00:00]} 46. Bxe3 {[%emt 0:07:06]} Bxe3 {[%emt 0:00:00]} 47. Bg4 {[%emt 0:00:02]} Bf4 {[%emt 0:00:00]} 48. Ne4 {[%emt 0:01:40]} Rd3 {[%emt 0:00:00]} 49. f6 {[%emt 0:00:29]} Rxa3 {[%emt 0:00:00]} 50. Rc5 {[%emt 0:00:19]} Kh7 {[%emt 0:00:00]} 51. Bf5+ {[%emt 0:00:09]} Kh6 {[%emt 0:00:00]} 52. Rc6 {[%emt 0:00:23]} Ra2 {[%emt 0:00:00]} 53. f7+ {[%emt 0:01:33]} Kg7 {[%emt 0:00:00]} 54. Be6 {[%emt 0:00:04]} Rxh2+ {[%emt 0:00:00]} 55. Kg1 {[%emt 0:00:01]} Rb8 {[%emt 0:00:00]} 56. Nc3 {[%emt 0:00:30]} Rbb2 {[%emt 0:05:26]} 57. Bd5 {[%emt 0:00:34]} Be3+ {[%emt 0:01:29]} 58. Kf1 {[%emt 0:00:04]} Rbf2+ {[%emt 0:02:45]} 59. Ke1 {[%emt 0:00:05]} Bd2+ {[%emt 0:00:10]} 60. Kd1 {[%emt 0:00:04]} Bxc3 {[%emt 0:00:12]} 0-1

[Event "DMP Ekstraliga 2020"]
[Site "Krakow"]
[Date "2020.08.28"]
[Round "3.12"]
[White "Zawadzka, Jolanta"]
[Black "Leks, Maria"]
[Result "0-1"]
[ECO "C45"]
[WhiteElo "2419"]
[BlackElo "2080"]
[Annotator "ChessBase"]
[PlyCount "118"]
[EventDate "2020.08.26"]
[EventType "team-tourn"]
[EventCountry "POL"]
[SourceTitle "playchess.com"]
[Source "ChessBase"]
[SourceQuality "1"]
[TimeControl "30/5400+30:1800+30"]

1. e4 {[%emt 0:00:00]} e5 {[%emt 0:00:00]} 2. Nf3 {[%emt 0:00:00]} Nc6 {[%emt 0:00:00]} 3. d4 {[%emt 0:00:00]} exd4 {[%emt 0:00:00]} 4. Nxd4 {[%emt 0:00:00]} Nf6 {[%emt 0:00:00]} 5. Nxc6 {[%emt 0:00:16]} bxc6 {[%emt 0:00:03]} 6. e5 {[%emt 0:00:05]} Qe7 {[%emt 0:00:17]} 7. Qe2 {[%emt 0:00:07]} Nd5 {[%emt 0:00:08]} 8. h4 {[%emt 0:00:10]} g6 {[%emt 0:14:06]} 9. Bg5 {[%emt 0:21:01]} f6 {[%emt 0:11:55]} 10. exf6 {[%emt 0:02:26]} Qxe2+ {[%emt 0:00:06]} 11. Bxe2 {[%emt 0:00:12]} h6 {[%emt 0:00:07]} 12. Bd2 {[%emt 0:07:02]} Nxf6 {[%emt 0:01:51]} 13. Bc3 {[%emt 0:01:59]} Bg7 {[%emt 0:00:39]} 14. Nd2 {[%emt 0:00:22]} O-O {[%emt 0:01:07]} 15. O-O-O {[%emt 0:07:20]} Nd5 {[%emt 0:04:22]} 16. Bxg7 {[%emt 0:00:10]} Kxg7 {[%emt 0:00:04]} 17. Bf3 {[%emt 0:01:03]} d6 {[%emt 0:32:09]} 18. Nb3 {[%emt 0:13:42]} Bd7 {[%emt 0:01:35]} 19. c4 {[%emt 0:04:23]} Nf4 {[%emt 0:03:19]} 20. Nd4 {[%emt 0:13:54]} Rab8 {[%emt 0:10:51]} 21. Rhe1 {[%emt 0:11:06]} c5 {[%emt 0:03:51]} 22. Nb3 {[%emt 0:01:51]} Bf5 {[%emt 0:03:28]} 23. Re3 {[%emt 0:00:32]} Rb4 {[%emt 0:02:35]} 24. Rc3 {[%emt 0:01:15]} Rfb8 {[%emt 0:04:19]} 25. g3 {[%emt 0:06:44]} Nh3 {[%emt 0:00:41]} 26. Rd2 {[%emt 0:00:45]} Re8 {[%emt 0:01:47]} 27. Kd1 {[%emt 0:02:19]} Be6 {[%emt 0:01:38]} 28. Bg2 {[%emt 0:01:39]} Ng1 {[%emt 0:01:38]} 29. Na5 {[%emt 0:00:16]} Rf8 {[%emt 0:01:15]} 30. Re3 {[%emt 0:01:22]} Bg4+ {[%emt 0:00:26]} 31. Ke1 {[%emt 0:31:45]} Ra4 {[%emt 0:30:04]} 32. Nb3 {[%emt 0:00:27]} Rxa2 {[%emt 0:00:47]} 33. f4 {[%emt 0:00:12]} a5 {[%emt 0:00:40]} 34. Kf1 {[%emt 0:01:15]} Nh3 {[%emt 0:00:03]} 35. Re7+ {[%emt 0:00:21]} Rf7 {[%emt 0:00:26]} 36. Rxf7+ {[%emt 0:00:15]} Kxf7 {[%emt 0:00:03]} 37. Bd5+ {[%emt 0:00:08]} Kf6 {[%emt 0:00:34]} 38. Kg2 {[%emt 0:00:29]} a4 {[%emt 0:00:07]} 39. Nc1 {[%emt 0:00:19]} Ra1 {[%emt 0:00:03]} 40. Ne2 {[%emt 0:00:00]} g5 {[%emt 0:00:00]} 41. fxg5+ {[%emt 0:00:00]} hxg5 {[%emt 0:00:00]} 42. h5 {[%emt 0:00:00]} Bd7 {[%emt 0:00:00]} 43. Nc3 {[%emt 0:00:00]} g4 {[%emt 0:00:00]} 44. Be4 {[%emt 0:00:00]} Kg5 {[%emt 0:00:00]} 45. Nd5 {[%emt 0:00:00]} Re1 {[%emt 0:00:00]} 46. Bg6 {[%emt 0:00:26]} Bc6 {[%emt 0:00:00]} 47. Bf7 {[%emt 0:01:55]} Rc1 {[%emt 0:00:00]} 48. Kh2 {[%emt 0:01:41]} Ng1 {[%emt 0:00:00]} 49. Kg2 {[%emt 0:00:18]} Nf3 {[%emt 0:06:23]} 50. Re2 {[%emt 0:00:06]} Ne5 {[%emt 0:00:12]} 51. Be6 {[%emt 0:00:08]} Rxc4 {[%emt 0:00:28]} 52. Kf2 {[%emt 0:00:19]} Bxd5 {[%emt 0:00:21]} 53. Bxd5 {[%emt 0:00:06]} Rd4 {[%emt 0:00:08]} 54. Be4 {[%emt 0:00:17]} Kxh5 {[%emt 0:00:08]} 55. Ke3 {[%emt 0:00:06]} Kg5 {[%emt 0:01:10]} 56. Bc2 {[%emt 0:02:58]} Nc4+ {[%emt 0:00:25]} 57. Kf2 {[%emt 0:00:04]} Nxb2 {[%emt 0:00:22]} 58. Bb1 {[%emt 0:01:00]} Nd1+ {[%emt 0:00:20]} 59. Ke1 {[%emt 0:00:10]} Nc3 {[%emt 0:00:05]} 0-1

[Event "DMP Ekstraliga 2020"]
[Site "Krakow"]
[Date "2020.08.28"]
[Round "3.13"]
[White "Kempinski, Robert"]
[Black "Antoniewski, Rafal"]
[Result "1/2-1/2"]
[ECO "D30"]
[WhiteElo "2568"]
[BlackElo "2490"]
[Annotator "ChessBase"]
[PlyCount "45"]
[EventDate "2020.08.26"]
[EventType "team-tourn"]
[EventCountry "POL"]
[SourceTitle "playchess.com"]
[Source "ChessBase"]
[SourceQuality "1"]
[TimeControl "30/5400+30:1800+30"]

1. d4 {[%emt 0:00:00]} Nf6 {[%emt 0:00:00]} 2. c4 {[%emt 0:00:23]} e6 {[%emt 0:00:16]} 3. Nf3 {[%emt 0:00:37]} d5 {[%emt 0:01:02]} 4. Bg5 {[%emt 0:04:52]} h6 {[%emt 0:03:12]} 5. Bxf6 {[%emt 0:00:41]} Qxf6 {[%emt 0:02:29]} 6. Nc3 {[%emt 0:00:10]} Bb4 {[%emt 0:01:11]} 7. Qb3 {[%emt 0:03:10]} c5 {[%emt 0:01:20]} 8. cxd5 {[%emt 0:01:54]} exd5 {[%emt 0:00:12]} 9. dxc5 {[%emt 0:00:08]} Bxc3+ {[%emt 0:03:17]} 10. Qxc3 {[%emt 0:01:14]} Qxc3+ {[%emt 0:00:07]} 11. bxc3 {[%emt 0:00:06]} O-O {[%emt 0:05:41]} 12. e3 {[%emt 0:02:49]} Nd7 {[%emt 0:01:07]} 13. Rd1 {[%emt 0:01:49]} Nf6 {[%emt 0:06:48]} 14. Nd4 {[%emt 0:03:51]} Bd7 {[%emt 0:05:02]} 15. f3 {[%emt 0:03:57]} Rfc8 {[%emt 0:05:10]} 16. Nb3 {[%emt 0:00:54]} Ba4 {[%emt 0:01:39]} 17. Kd2 {[%emt 0:05:42]} Nd7 {[%emt 0:05:46]} 18. Rb1 {[%emt 0:02:05]} Rc7 {[%emt 0:04:05]} 19. Bd3 {[%emt 0:01:54]} Rb8 {[%emt 0:01:10]} 20. Rhc1 {[%emt 0:02:02]} Nxc5 {[%emt 0:01:04]} 21. Nxc5 {[%emt 0:00:17]} Rxc5 {[%emt 0:00:05]} 22. Rb4 {[%emt 0:00:58]} Bc6 {[%emt 0:01:06]} 23. Rc2 {[%emt 0:02:28]} 1/2-1/2

[Event "DMP Ekstraliga 2020"]
[Site "Krakow"]
[Date "2020.08.28"]
[Round "3.14"]
[White "Cyborowski, Lukasz"]
[Black "Heberla, Bartlomiej"]
[Result "1/2-1/2"]
[ECO "A04"]
[WhiteElo "2508"]
[BlackElo "2566"]
[Annotator "ChessBase"]
[PlyCount "63"]
[EventDate "2020.08.26"]
[EventType "team-tourn"]
[EventCountry "POL"]
[SourceTitle "playchess.com"]
[Source "ChessBase"]
[SourceQuality "1"]
[TimeControl "30/5400+30:1800+30"]

1. Nf3 {[%emt 0:00:00]} g6 {[%emt 0:00:00]} 2. d4 {[%emt 0:04:21]} Bg7 {[%emt 0:00:00]} 3. c4 {[%emt 0:00:08]} e6 {[%emt 0:00:03]} 4. Nc3 {[%emt 0:02:02]} Ne7 {[%emt 0:00:16]} 5. g3 {[%emt 0:02:58]} O-O {[%emt 0:00:11]} 6. Bg2 {[%emt 0:00:05]} d5 {[%emt 0:00:02]} 7. cxd5 {[%emt 0:00:54]} exd5 {[%emt 0:00:02]} 8. O-O {[%emt 0:00:10]} Nbc6 {[%emt 0:00:06]} 9. Bg5 {[%emt 0:22:06]} h6 {[%emt 0:03:39]} 10. Bxe7 {[%emt 0:00:12]} Nxe7 {[%emt 0:00:03]} 11. b4 {[%emt 0:00:14]} Nf5 {[%emt 0:06:07]} 12. e3 {[%emt 0:02:54]} Be6 {[%emt 0:03:02]} 13. b5 {[%emt 0:03:22]} a6 {[%emt 0:06:05]} 14. a4 {[%emt 0:01:31]} c5 {[%emt 0:13:18]} 15. bxc6 {[%emt 0:03:43]} bxc6 {[%emt 0:01:11]} 16. Rc1 {[%emt 0:00:12]} Rc8 {[%emt 0:03:08]} 17. Ne2 {[%emt 0:01:44]} Qe7 {[%emt 0:07:33]} 18. Nf4 {[%emt 0:02:06]} c5 {[%emt 0:01:18]} 19. Nxe6 {[%emt 0:06:57]} fxe6 {[%emt 0:01:49]} 20. dxc5 {[%emt 0:02:01]} Rxc5 {[%emt 0:00:18]} 21. Qd3 {[%emt 0:00:28]} Rxc1 {[%emt 0:05:10]} 22. Rxc1 {[%emt 0:00:46]} Qb7 {[%emt 0:00:02]} 23. Rb1 {[%emt 0:14:11]} Qc6 {[%emt 0:04:05]} 24. a5 {[%emt 0:00:53]} Qc4 {[%emt 0:03:37]} 25. Qd1 {[%emt 0:06:13]} d4 {[%emt 0:26:12]} 26. Qb3 {[%emt 0:07:22]} Qxb3 {[%emt 0:01:08]} 27. Rxb3 {[%emt 0:00:17]} dxe3 {[%emt 0:00:02]} 28. fxe3 {[%emt 0:00:07]} Rc8 {[%emt 0:00:22]} 29. Bf1 {[%emt 0:00:06]} Rc3 {[%emt 0:08:59]} 30. Rxc3 {[%emt 0:10:34]} Bxc3 {[%emt 0:00:05]} 31. Bxa6 {[%emt 0:30:05]} Bxa5 {[%emt 0:30:31]} 32. Bc4 {[%emt 0:00:43]} 1/2-1/2

[Event "DMP Ekstraliga 2020"]
[Site "Krakow"]
[Date "2020.08.28"]
[Round "3.15"]
[White "Olszewski, Michal"]
[Black "Nurkiewicz, Maciej"]
[Result "1/2-1/2"]
[ECO "A14"]
[WhiteElo "2547"]
[BlackElo "2326"]
[Annotator "ChessBase"]
[PlyCount "99"]
[EventDate "2020.08.26"]
[EventType "team-tourn"]
[EventCountry "POL"]
[SourceTitle "playchess.com"]
[Source "ChessBase"]
[SourceQuality "1"]
[TimeControl "30/5400+30:1800+30"]

1. Nf3 {[%emt 0:00:04]} d5 {[%emt 0:03:06]} 2. c4 {[%emt 0:01:37]} e6 {[%emt 0:03:24]} 3. g3 {[%emt 0:02:28]} Nf6 {[%emt 0:01:22]} 4. Bg2 {[%emt 0:00:07]} Be7 {[%emt 0:01:14]} 5. O-O {[%emt 0:00:08]} O-O {[%emt 0:00:03]} 6. b3 {[%emt 0:05:47]} b6 {[%emt 0:01:23]} 7. Bb2 {[%emt 0:00:18]} Bb7 {[%emt 0:00:07]} 8. e3 {[%emt 0:05:50]} Nbd7 {[%emt 0:00:39]} 9. Nc3 {[%emt 0:03:50]} c5 {[%emt 0:00:49]} 10. d3 {[%emt 0:03:13]} Qc7 {[%emt 0:05:27]} 11. Qe2 {[%emt 0:04:45]} Rad8 {[%emt 0:02:09]} 12. Rac1 {[%emt 0:07:38]} Qb8 {[%emt 0:03:46]} 13. e4 {[%emt 0:20:25]} dxe4 {[%emt 0:14:31]} 14. dxe4 {[%emt 0:00:15]} Ng4 {[%emt 0:00:30]} 15. Ne1 {[%emt 0:09:56]} Nge5 {[%emt 0:01:23]} 16. f4 {[%emt 0:02:16]} Nc6 {[%emt 0:00:08]} 17. e5 {[%emt 0:03:34]} Nd4 {[%emt 0:04:24]} 18. Qe3 {[%emt 0:02:56]} Bxg2 {[%emt 0:01:05]} 19. Kxg2 {[%emt 0:00:08]} Qb7+ {[%emt 0:00:58]} 20. Qe4 {[%emt 0:00:56]} Qxe4+ {[%emt 0:01:26]} 21. Nxe4 {[%emt 0:00:40]} Nb8 {[%emt 0:00:15]} 22. Nf3 {[%emt 0:03:50]} Nxf3 {[%emt 0:08:13]} 23. Kxf3 {[%emt 0:00:08]} Rd7 {[%emt 0:00:23]} 24. Rfd1 {[%emt 0:01:43]} Rfd8 {[%emt 0:00:32]} 25. Rxd7 {[%emt 0:00:04]} Rxd7 {[%emt 0:00:06]} 26. Bc3 {[%emt 0:01:10]} Nc6 {[%emt 0:01:06]} 27. Ke3 {[%emt 0:00:09]} h5 {[%emt 0:18:15]} 28. h3 {[%emt 0:05:01]} Rd8 {[%emt 0:03:11]} 29. Rf1 {[%emt 0:00:52]} g6 {[%emt 0:04:22]} 30. g4 {[%emt 0:12:14]} hxg4 {[%emt 0:00:07]} 31. hxg4 {[%emt 0:30:02]} Rd7 {[%emt 0:31:42]} 32. Rh1 {[%emt 0:00:52]} Rd8 {[%emt 0:01:16]} 33. Rg1 {[%emt 0:02:22]} Kf8 {[%emt 0:02:53]} 34. Nf2 {[%emt 0:01:05]} Bh4 {[%emt 0:03:52]} 35. Nd3 {[%emt 0:00:21]} Be7 {[%emt 0:00:34]} 36. Ke4 {[%emt 0:00:11]} Rd7 {[%emt 0:06:09]} 37. Nc1 {[%emt 0:00:55]} Bd8 {[%emt 0:02:56]} 38. Ne2 {[%emt 0:00:27]} Bc7 {[%emt 0:01:38]} 39. Rh1 {[%emt 0:00:17]} Kg8 {[%emt 0:00:57]} 40. Nc1 {[%emt 0:00:00]} Rd8 {[%emt 0:00:00]} 41. Nd3 {[%emt 0:00:00]} Rd7 {[%emt 0:00:00]} 42. Nf2 {[%emt 0:00:00]} Bd8 {[%emt 0:00:00]} 43. f5 {[%emt 0:00:00]} Bg5 {[%emt 0:00:00]} 44. f6 {[%emt 0:00:00]} Rd8 {[%emt 0:00:00]} 45. Nh3 {[%emt 0:00:00]} Bd2 {[%emt 0:00:00]} 46. Bb2 {[%emt 0:00:00]} Nb4 {[%emt 0:00:00]} 47. Nf2 {[%emt 0:00:35]} Bg5 {[%emt 0:00:00]} 48. Nh3 {[%emt 0:01:00]} Bd2 {[%emt 0:00:00]} 49. Nf2 {[%emt 0:00:39]} Bg5 {[%emt 0:00:00]} 50. Nh3 {[%emt 0:02:32]} 1/2-1/2

[Event "DMP Ekstraliga 2020"]
[Site "Krakow"]
[Date "2020.08.28"]
[Round "3.16"]
[White "Bartel, Michal"]
[Black "Kriebel, Tadeas"]
[Result "0-1"]
[ECO "B40"]
[WhiteElo "2274"]
[BlackElo "2519"]
[Annotator "ChessBase"]
[PlyCount "84"]
[EventDate "2020.08.26"]
[EventType "team-tourn"]
[EventCountry "POL"]
[SourceTitle "playchess.com"]
[Source "ChessBase"]
[SourceQuality "1"]
[TimeControl "30/5400+30:1800+30"]

1. e4 {[%emt 0:00:00]} c5 {[%emt 0:00:00]} 2. Nf3 {[%emt 0:00:00]} e6 {[%emt 0:00:00]} 3. c4 {[%emt 0:01:34]} Nc6 {[%emt 0:00:27]} 4. Nc3 {[%emt 0:00:09]} Nf6 {[%emt 0:08:26]} 5. d4 {[%emt 0:04:13]} cxd4 {[%emt 0:00:22]} 6. Nxd4 {[%emt 0:00:07]} Bb4 {[%emt 0:01:19]} 7. Nxc6 {[%emt 0:04:14]} bxc6 {[%emt 0:00:30]} 8. Bd3 {[%emt 0:06:24]} e5 {[%emt 0:00:32]} 9. O-O {[%emt 0:00:41]} O-O {[%emt 0:00:05]} 10. Qe2 {[%emt 0:02:33]} Re8 {[%emt 0:05:02]} 11. Bd2 {[%emt 0:04:18]} d6 {[%emt 0:01:56]} 12. Rfd1 {[%emt 0:03:07]} Rb8 {[%emt 0:06:31]} 13. h3 {[%emt 0:00:45]} Bc5 {[%emt 0:05:59]} 14. Rab1 {[%emt 0:06:17]} a5 {[%emt 0:04:53]} 15. Na4 {[%emt 0:11:17]} Bd4 {[%emt 0:00:05]} 16. Qe1 {[%emt 0:00:32]} Nh5 {[%emt 0:01:43]} 17. Be2 {[%emt 0:04:07]} Qh4 {[%emt 0:03:55]} 18. Bxh5 {[%emt 0:05:48]} Qxh5 {[%emt 0:00:08]} 19. Be3 {[%emt 0:02:12]} Rb4 {[%emt 0:09:20]} 20. b3 {[%emt 0:00:31]} Re6 {[%emt 0:00:54]} 21. f4 {[%emt 0:12:57]} c5 {[%emt 0:20:19]} 22. f5 {[%emt 0:03:41]} Re8 {[%emt 0:00:08]} 23. Kh2 {[%emt 0:00:42]} f6 {[%emt 0:00:30]} 24. Bd2 {[%emt 0:03:09]} Rb7 {[%emt 0:03:31]} 25. Bxa5 {[%emt 0:04:53]} Bd7 {[%emt 0:00:18]} 26. Nc3 {[%emt 0:02:58]} Ra8 {[%emt 0:02:04]} 27. Nd5 {[%emt 0:03:06]} Bc6 {[%emt 0:06:48]} 28. a3 {[%emt 0:03:48]} Bxd5 {[%emt 0:03:32]} 29. cxd5 {[%emt 0:00:02]} Qe8 {[%emt 0:01:15]} 30. b4 {[%emt 0:00:48]} Qa4 {[%emt 0:01:13]} 31. bxc5 {[%emt 0:32:28]} Rxb1 {[%emt 0:30:42]} 32. Rxb1 {[%emt 0:00:04]} Qxa5 {[%emt 0:04:36]} 33. Rb8+ {[%emt 0:00:05]} Kf7 {[%emt 0:00:04]} 34. Rb7+ {[%emt 0:00:05]} Ke8 {[%emt 0:00:05]} 35. Qh4 {[%emt 0:03:14]} Be3 {[%emt 0:01:47]} 36. Rxg7 {[%emt 0:00:35]} Bf4+ {[%emt 0:02:39]} 37. Kh1 {[%emt 0:00:03]} dxc5 {[%emt 0:01:14]} 38. d6 {[%emt 0:03:54]} Ra7 {[%emt 0:04:06]} 39. Rg8+ {[%emt 0:02:36]} Kd7 {[%emt 0:00:05]} 40. Qxh7+ {[%emt 0:00:00]} Kxd6 {[%emt 0:00:00]} 41. Qh4 {[%emt 0:00:00]} Rf7 {[%emt 0:00:00]} 42. Rg7 {[%emt 0:00:00]} Qxa3 {[%emt 0:00:00]} 0-1